bitfinex/quotes_ETHUSD_20240607
["timestamp","ask_amount","ask_price","bid_price","bid_amount"]
[1717747992846,7.65101489,3812.8,3812.7,3.8e-07]
[1717747993060,7.65101489,3812.8,3811.6,0.55058671]
[1717747993061,2.62329,3812.0,3811.6,0.55058671]
[1717747993271,2.62329,3812.0,3811.3,1.10117342]
[1717747993272,2.62357,3811.6,3811.4,0.55058671]
[1717747993501,2.62357,3811.6,3811.5,1.36798185]
[1717747993788,2.62357,3811.6,3811.3,0.55058671]
[1717747993945,2.62357,3811.6,3811.4,1.36806245]
[1717747994149,2.62357,3811.6,3811.5,1.36806245]
[1717747994792,2.62357,3811.6,3811.3,0.55058671]
[1717747994951,2.62357,3811.6,3811.4,1.36805078]
[1717747995145,2.62357,3811.6,3811.2,0.55058671]
[1717747995344,2.62357,3811.6,3811.3,1.36807397]
[1717747995581,2.62357,3811.6,3811.4,1.36804249]
[1717747995906,2.62357,3811.6,3811.2,0.55058671]
[1717747996051,2.62357,3811.6,3811.3,1.36804223]
[1717747996255,2.62357,3811.6,3811.1,1.33058671]
[1717747996466,2.62357,3811.6,3811.2,1.3680661]
[1717747996651,2.62357,3811.6,3811.3,1.3680661]
[1717747996851,2.62357,3811.6,3811.1,1.65635073]
[1717747997162,2.62357,3811.6,3811.2,1.91865918]
[1717747997494,2.62357,3811.6,3811.3,2.14807247]
[1717747997700,2.62357,3811.6,3811.3,0.78]
[1717747999292,2.62357,3811.6,3811.2,0.55058671]
[1717747999455,3.0,3811.5,3811.3,0.78]
[1717748000393,2.62371,3811.4,3811.1,0.78]
[1717748000550,2.62371,3811.4,3810.8,0.55058671]
[1717748000754,3.37371,3811.4,3810.9,1.36810084]
[1717748001061,3.37371,3811.4,3810.8,0.78]
[1717748001463,3.37371,3811.4,3811.0,0.78]
[1717748006072,3.37371,3811.4,3810.6,0.55058671]
[1717748006399,3.37371,3811.4,3811.0,0.78]
[1717748010280,3.37371,3811.4,3811.2,0.78]
[1717748010616,3.37273516,3811.4,3811.2,0.78]
[1717748010918,2.62273516,3811.4,3811.3,0.78]
[1717748011113,0.75,3811.6,3811.3,0.78]
[1717748011416,0.75,3811.6,3811.5,0.78]
[1717748011774,0.75,3811.6,3811.4,0.78]
[1717748012317,0.75,3811.6,3810.9,2.2737]
[1717748012525,0.75,3811.6,3811.4,0.78]
[1717748013017,2.62363,3811.5,3810.8,0.55058671]
[1717748013194,2.62363,3811.5,3811.3,0.78]
[1717748013577,3.37363,3811.5,3811.3,0.78]
[1717748019448,2.62363,3811.5,3811.3,0.78]
[1717748022027,3.0,3811.7,3811.3,0.78]
[1717748022233,0.75,3811.6,3810.9,0.55058671]
[1717748022429,2.6235,3811.7,3811.3,0.78]
[1717748022830,3.3735,3811.7,3811.3,0.78]
[1717748024774,4.74785,3811.7,3811.0,0.55058671]
[1717748025064,4.74785,3811.7,3811.3,0.78]
[1717748025065,3.3735,3811.7,3811.3,0.78]
[1717748026670,3.3735,3811.7,3810.9,0.55058671]
[1717748026871,3.3735,3811.7,3811.3,0.78]
[1717748027071,3.94076093,3811.7,3811.3,0.78]
[1717748027374,3.94076093,3811.7,3810.9,0.55058671]
[1717748027542,3.94076093,3811.7,3811.2,0.78]
[1717748027735,5.37183702,3811.7,3811.2,0.78]
[1717748028681,5.37183702,3811.7,3810.9,0.55058671]
[1717748028837,5.37183702,3811.7,3811.2,0.78]
[1717748032158,5.37185306,3811.7,3811.2,0.78]
[1717748032643,5.37185306,3811.7,3811.0,0.55058671]
[1717748032870,5.37185306,3811.7,3811.2,0.78]
[1717748034261,2.62365,3811.5,3811.1,1.33058671]
[1717748034464,2.62365,3811.5,3811.2,1.36810864]
[1717748034796,2.62365,3811.5,3811.1,1.33058671]
[1717748034965,3.37365,3811.5,3811.2,1.36812768]
[1717748035165,3.37365,3811.5,3811.1,1.33058671]
[1717748035370,3.37365,3811.5,3811.2,1.36812782]
[1717748035607,5.76285,3811.5,3811.3,1.36812782]
[1717748035811,5.76285,3811.5,3811.1,1.33058671]
[1717748036289,5.76285,3811.5,3811.1,0.55058671]
[1717748036625,5.76285,3811.5,3811.2,1.91871488]
[1717748036805,5.76285,3811.5,3811.3,1.36812817]
[1717748036988,5.76285,3811.5,3811.2,0.55058671]
[1717748037187,5.76285,3811.5,3811.3,1.36812889]
[1717748037396,5.76285,3811.5,3811.4,1.36812889]
[1717748039907,6.86596114,3811.5,3811.4,1.36812889]
[1717748040109,6.86596114,3811.5,3811.1,0.82588006]
[1717748040110,2.62377,3811.3,3811.2,0.55058671]
[1717748040273,2.62377,3811.3,3810.8,1.10117342]
[1717748040274,2.62377,3811.3,3810.8,0.55058671]
[1717748040515,2.62377,3811.3,3810.9,1.91893364]
[1717748040748,3.75379353,3811.3,3811.0,1.36834693]
[1717748040918,4.32114766,3811.3,3810.9,0.55058671]
[1717748041118,4.32114766,3811.3,3811.0,1.36831865]
[1717748041318,4.32114766,3811.3,3810.9,0.55058671]
[1717748041618,2.62391,3811.1,3811.0,1.36831806]
[1717748043343,2.62391,3811.1,3810.8,0.55058671]
[1717748043521,2.62391,3811.1,3810.9,1.3683187]
[1717748043717,2.62391,3811.1,3811.0,1.3683187]
[1717748046447,2.62391,3811.1,3811.0,1.36830068]
[1717748047326,2.62391,3811.1,3811.0,4.01838129]
[1717748047522,2.62391,3811.1,3811.0,1.36830068]
[1717748049730,2.62391,3811.1,3811.0,1.3682466]
[1717748056456,5.62365,3811.5,3811.0,1.3682466]
[1717748056767,0.75,3811.3,3811.2,0.78]
[1717748056989,5.62365,3811.5,3811.2,2.1482466]
[1717748057149,5.62365,3811.5,3811.3,1.3682466]
[1717748057344,6.37365,3811.5,3811.4,1.3680912]
[1717748058083,0.75,3811.5,3811.4,2.69888963]
[1717748058236,3.0,3811.8,3811.4,2.69888963]
[1717748058437,0.75,3811.7,3811.5,1.3680912]
[1717748058638,0.75,3811.7,3811.4,1.33079843]
[1717748058887,0.75,3811.7,3811.5,1.36801771]
[1717748059177,0.75,3811.7,3811.4,1.33079843]
[1717748059383,0.75,3811.7,3811.5,1.36802025]
[1717748059589,0.75,3811.7,3811.4,0.78]
[1717748059771,0.75,3811.7,3811.5,1.36803918]
[1717748059937,0.75,3811.7,3811.4,0.78]
[1717748060138,0.75,3811.7,3811.5,1.36804414]
[1717748060339,0.75,3811.7,3811.4,0.78]
[1717748060700,0.75,3811.7,3811.5,1.36804425]
[1717748060837,0.75,3811.7,3811.4,1.33079843]
[1717748061037,0.75,3811.7,3811.5,1.36803131]
[1717748061314,0.75,3811.7,3811.4,1.33079843]
[1717748061437,0.75,3811.7,3811.5,1.36802321]
[1717748061638,0.75,3811.7,3811.4,1.33079843]
[1717748061878,0.75,3811.7,3811.5,1.36802569]
[1717748062144,0.75,3811.7,3811.4,1.33079843]
[1717748062358,0.75,3811.7,3811.5,1.36802591]
[1717748062653,0.75,3811.7,3811.4,1.33079843]
[1717748062841,0.75,3811.7,3811.5,1.36802595]
[1717748063037,0.75,3811.7,3811.4,1.33079843]
[1717748063377,0.75,3811.7,3811.5,1.3680223]
[1717748063541,0.75,3811.7,3811.4,0.78]
[1717748063886,0.75,3811.7,3811.5,1.36803654]
[1717748064042,0.75,3811.7,3811.4,0.78]
[1717748064244,0.75,3811.7,3811.5,1.36803656]
[1717748064576,0.75,3811.7,3811.4,1.33079843]
[1717748064776,0.75,3811.7,3811.5,1.36801719]
[1717748064982,0.75,3811.7,3811.6,0.78]
[1717748065143,0.75,3811.7,3811.6,2.14798735]
[1717748065337,0.75,3811.7,3811.6,1.36798735]
[1717748065575,0.75,3811.7,3811.5,0.78]
[1717748066950,0.75,3811.7,3811.6,1.36800267]
[1717748067174,3.0,3812.0,3811.6,1.9188011]
[1717748067377,0.75,3812.0,3811.7,2.14800267]
[1717748067538,0.75,3812.0,3811.7,0.78]
[1717748083376,0.75,3812.0,3811.9,0.78]
[1717748083617,0.75,3812.0,3811.9,0.44592747]
[1717748084407,0.75,3812.1,3811.9,0.44592747]
[1717748084782,7.37,3812.4,3811.9,0.44592747]
[1717748084979,3.75,3812.3,3812.2,0.78]
[1717748089234,0.75,3812.3,3812.2,0.78]
[1717748089440,3.0,3812.5,3812.2,0.78]
[1717748089627,5.4454,3812.6,3812.4,0.78]
[1717748089794,0.75,3812.5,3812.4,0.78]
[1717748090236,3.75,3812.5,3812.4,0.78]
[1717748092302,0.75,3812.5,3812.4,0.78]
[1717748092504,0.75,3812.5,3812.4,2.14753838]
[1717748092828,3.0,3812.9,3812.4,2.14753838]
[1717748093035,3.0,3812.9,3812.8,0.78]
[1717748093036,3.75,3812.9,3812.8,0.78]
[1717748097521,0.75,3812.9,3812.8,0.78]
[1717748097841,2.62256,3813.1,3812.8,0.78]
[1717748098134,0.75,3813.0,3812.8,0.78]
[1717748099845,0.75,3813.1,3812.8,0.78]
[1717748099998,0.75,3813.1,3813.0,0.78]
[1717748100319,0.75,3813.1,3812.4,2.83469843]
[1717748100519,0.75,3813.1,3813.0,0.78]
[1717748101904,3.0,3813.4,3813.0,0.78]
[1717748102237,0.75,3813.2,3812.5,0.55079843]
[1717748102437,0.75,3813.2,3813.1,0.78]
[1717748105244,0.75,3813.2,3812.5,0.55079843]
[1717748105541,0.75,3813.2,3813.0,0.78]
[1717748110871,2.3262,3813.1,3812.4,0.55079843]
[1717748111169,2.3262,3813.1,3812.2,3.44899006]
[1717748111170,2.3262,3813.1,3812.3,0.55079843]
[1717748111307,0.30762,3813.0,3812.6,0.78]
[1717748111502,2.62269,3812.9,3812.1,0.55079843]
[1717748111738,2.4647,3812.8,3812.2,2.14753886]
[1717748111943,2.4647,3812.8,3812.3,0.78]
[1717748112143,0.539501,3812.7,3811.8,5.57360843]
[1717748112397,0.539501,3812.7,3812.3,0.78]
[1717748112748,0.539501,3812.7,3811.8,5.57360843]
[1717748112948,0.539501,3812.7,3812.2,0.78]
[1717748113455,2.62289,3812.6,3811.8,2.3994]
[1717748113651,2.62289,3812.6,3812.2,0.78]
[1717748113857,0.5627091,3812.5,3812.2,0.78]
[1717748114245,2.62289,3812.6,3812.2,0.78]
[1717748116579,2.62289,3812.6,3811.7,0.55079843]
[1717748116781,2.62309,3812.3,3811.8,1.36771319]
[1717748116985,2.62309,3812.3,3812.0,0.78]
[1717748117299,3.37309,3812.3,3812.0,0.78]
[1717748123604,3.37309,3812.3,3812.2,0.78]
[1717748127794,2.62309,3812.3,3812.2,0.78]
[1717748130657,1.13422509,3815.3,3812.2,0.91307984]
[1717748130658,4.95001,3812.8,3812.2,0.91307984]
[1717748130858,4.95001,3812.8,3812.0,0.55079843]
[1717748130859,0.75,3812.4,3812.0,0.55079843]
[1717748131088,4.95001,3812.8,3812.3,0.78]
[1717748131304,4.95001,3812.8,3812.7,0.78]
[1717748131493,7.95001,3812.8,3812.7,0.78]
[1717748131810,8.70001,3812.8,3812.7,0.78]
[1717748134363,4.93568,3812.3,3812.1,0.55079843]
[1717748134563,4.93568,3812.3,3811.9,1.33079843]
[1717748134900,4.93568,3812.3,3812.0,1.36774317]
[1717748135202,0.75,3812.2,3811.9,1.33079843]
[1717748135405,0.75,3812.2,3812.0,1.36774561]
[1717748135564,0.75,3812.2,3812.0,0.78]
[1717748138473,4.93568,3812.3,3812.0,0.78]
[1717748138679,4.93568,3812.3,3812.2,0.78]
[1717748138882,5.68568,3812.3,3812.2,0.78]
[1717748143667,5.68568,3812.3,3811.9,0.55079843]
[1717748144016,5.68568,3812.3,3812.0,1.36771612]
[1717748144306,5.68568,3812.3,3812.2,0.78]
[1717748144870,5.68568,3812.3,3811.9,0.55079843]
[1717748145174,5.68568,3812.3,3812.1,0.78]
[1717748145366,5.68568,3812.3,3811.9,0.55079843]
[1717748145571,5.68568,3812.3,3812.2,0.78]
[1717748148111,3.37308,3812.3,3812.2,0.78]
[1717748151305,3.37308,3812.3,3812.2,2.14771196]
[1717748152430,3.37308,3812.3,3812.2,1.36771196]
[1717748152732,3.37308,3812.3,3812.2,2.14771196]
[1717748155520,3.37308,3812.3,3812.2,2.14771752]
[1717748156428,3.37308,3812.3,3812.2,2.69851595]
[1717748157814,3.37308,3812.3,3812.2,1.91864116]
[1717748161524,3.37308,3812.3,3812.2,1.36771752]
[1717748161728,4.01494047,3812.3,3812.2,1.36771752]
[1717748163403,3.37308,3812.3,3812.2,1.36771752]
[1717748171650,3.37308,3812.3,3812.1,0.55092364]
[1717748171836,3.37308,3812.3,3812.2,1.36775778]
[1717748174022,3.37308,3812.3,3812.0,0.55092364]
[1717748174222,3.37308,3812.3,3812.1,1.36783096]
[1717748174426,3.37308,3812.3,3811.7,0.78]
[1717748174427,2.62322,3812.1,3811.9,0.55092364]
[1717748174622,2.62322,3812.1,3812.0,1.91878208]
[1717748175955,2.62322,3812.1,3812.0,1.36785844]
[1717748177646,8.07562,3812.1,3812.0,1.36785844]
[1717748177825,8.07562,3812.1,3811.8,0.55092364]
[1717748177826,2.6235,3811.7,3811.4,1.3768037]
[1717748178038,2.6235,3811.7,3811.5,1.36802231]
[1717748178229,2.62363,3811.5,3811.4,0.55092364]
[1717748178428,2.62363,3811.5,3811.4,1.36805556]
[1717748179246,2.62363,3811.5,3811.3,0.78]
[1717748181859,2.62363,3811.5,3811.1,0.78]
[1717748182014,2.62363,3811.5,3811.2,1.36811196]
[1717748182359,2.62363,3811.5,3811.1,0.78]
[1717748183017,2.62363,3811.5,3811.0,0.55092364]
[1717748183018,2.62363,3811.5,3811.2,0.78]
[1717748183336,2.62391,3811.1,3810.9,2.96122364]
[1717748183655,2.62391,3811.1,3811.0,2.14811261]
[1717748185253,2.62391,3811.1,3811.0,2.14811525]
[1717748185419,2.62391,3811.1,3811.0,1.36811525]
[1717748185617,3.37391,3811.1,3811.0,0.78]
[1717748186631,2.62391,3811.1,3811.0,0.78]
[1717748188261,2.62391,3811.1,3810.7,2.84232364]
[1717748188419,2.62391,3811.1,3810.9,0.78]
[1717748191267,2.62391,3811.1,3810.6,0.55092364]
[1717748191423,2.62391,3811.1,3810.8,0.78]
[1717748192338,2.62391,3811.1,3810.5,0.55092364]
[1717748192530,2.62391,3811.1,3810.9,0.78]
[1717748198449,2.62391,3811.1,3810.5,0.55092364]
[1717748198662,2.62391,3811.1,3810.6,1.36822193]
[1717748198837,2.62391,3811.1,3810.4,0.55092364]
[1717748199037,2.62391,3811.1,3810.5,1.36822172]
[1717748199259,2.62391,3811.1,3810.6,1.36822172]
[1717748199569,2.62391,3811.1,3810.4,0.55092364]
[1717748199570,2.62391,3811.1,3810.5,0.55092364]
[1717748199741,2.62391,3811.1,3810.6,1.36820521]
[1717748199947,2.62391,3811.1,3810.5,0.55092364]
[1717748200176,2.62391,3811.1,3810.6,1.36820498]
[1717748200337,2.62391,3811.1,3810.4,0.55092364]
[1717748200535,2.62391,3811.1,3810.5,1.36820619]
[1717748200738,2.62391,3811.1,3810.6,1.36820619]
[1717748200970,2.62391,3811.1,3810.4,0.55092364]
[1717748201269,2.62391,3811.1,3810.5,1.36822887]
[1717748201569,2.62391,3811.1,3810.6,1.36822887]
[1717748201758,2.62391,3811.1,3810.4,0.55092364]
[1717748201963,2.62391,3811.1,3810.5,1.36821122]
[1717748202257,2.62391,3811.1,3810.6,1.36821122]
[1717748202639,2.62391,3811.1,3810.4,0.55092364]
[1717748202846,2.62391,3811.1,3810.5,1.36821976]
[1717748203046,2.62391,3811.1,3810.6,1.36821976]
[1717748203372,2.62391,3811.1,3810.4,0.55092364]
[1717748203673,2.62391,3811.1,3810.5,1.36822192]
[1717748203838,2.62391,3811.1,3810.6,1.36822192]
[1717748204039,2.62391,3811.1,3810.4,0.55092364]
[1717748204238,2.62391,3811.1,3810.5,1.36821908]
[1717748204465,2.62391,3811.1,3810.6,1.36821908]
[1717748204677,2.6241,3810.9,3810.4,0.55092364]
[1717748204878,2.6241,3810.9,3810.5,1.36822542]
[1717748205079,2.6241,3810.9,3810.6,1.36822542]
[1717748205298,2.6241,3810.9,3810.4,0.55092364]
[1717748205584,2.6241,3810.9,3810.5,1.70116403]
[1717748205802,2.6241,3810.9,3810.6,1.36822975]
[1717748206002,2.6241,3810.9,3810.5,0.33293428]
[1717748206156,2.6241,3810.9,3810.6,1.36822724]
[1717748206351,2.6241,3810.9,3810.5,0.33293428]
[1717748206556,2.6241,3810.9,3810.6,1.36822758]
[1717748206813,2.6241,3810.9,3810.5,0.33293428]
[1717748206955,2.6241,3810.9,3810.6,1.36822768]
[1717748207158,2.6241,3810.9,3810.5,0.33293428]
[1717748207357,2.6241,3810.9,3810.6,1.36822682]
[1717748207588,2.6241,3810.9,3810.5,0.33293428]
[1717748207856,2.6241,3810.9,3810.6,1.36822688]
[1717748208057,2.6241,3810.9,3810.5,0.33293428]
[1717748208334,2.6241,3810.9,3810.6,1.36822154]
[1717748208666,2.6241,3810.9,3810.5,0.33293428]
[1717748208975,2.6241,3810.9,3810.6,1.36822335]
[1717748209182,2.6241,3810.9,3810.5,0.88385792]
[1717748209386,2.6241,3810.9,3810.6,1.36822246]
[1717748209582,2.6241,3810.9,3810.5,0.88385792]
[1717748209792,2.6241,3810.9,3810.6,1.36822277]
[1717748210113,2.6241,3810.9,3810.5,0.88385792]
[1717748210263,2.6241,3810.9,3810.6,1.36821537]
[1717748210466,2.6241,3810.9,3810.5,0.55092364]
[1717748210711,2.6241,3810.9,3810.6,1.36821664]
[1717748211007,2.6241,3810.9,3810.5,0.55092364]
[1717748211168,2.6241,3810.9,3810.6,1.36822004]
[1717748211496,2.6241,3810.9,3810.7,1.36822004]
[1717748211704,2.6241,3810.9,3810.5,0.55092364]
[1717748212005,2.6241,3810.9,3810.6,1.36822076]
[1717748212178,0.56732015,3811.6,3810.4,0.55092364]
[1717748212179,2.62432,3810.5,3810.4,0.55092364]
[1717748212379,2.62432,3810.5,3810.4,1.91915187]
[1717748212592,2.62432,3810.5,3810.4,1.36822823]
[1717748216504,2.62432,3810.5,3810.4,1.91915187]
[1717748219298,2.62432,3810.5,3810.4,1.36822823]
[1717748220314,2.62432,3810.5,3810.4,4.01849432]
[1717748220813,2.62432,3810.5,3810.4,1.36822823]
[1717748221326,2.62432,3810.5,3810.4,4.01850561]
[1717748222419,2.62432,3810.5,3810.4,3.19262555]
[1717748222618,2.62409,3810.9,3810.4,3.19262555]
[1717748222773,2.62409,3810.9,3810.7,0.55068901]
[1717748222972,2.62409,3810.9,3810.8,1.36822823]
[1717748223400,2.62409,3810.9,3810.8,1.91891724]
[1717748228370,2.62409,3810.9,3810.8,1.91897354]
[1717748233000,2.62409,3810.9,3810.8,1.36828453]
[1717748234035,2.62409,3810.9,3810.8,1.91940099]
[1717748236511,2.62409,3810.9,3810.8,1.36828453]
[1717748237915,2.62409,3810.9,3810.8,4.0185978]
[1717748239043,2.62409,3810.9,3810.8,1.36828453]
[1717748241719,2.62409,3810.9,3810.8,1.368247]
[1717748242120,2.62409,3810.9,3810.8,4.01858139]
[1717748242669,2.62409,3810.9,3810.8,1.368247]
[1717748245177,2.62409,3810.9,3810.8,4.01859495]
[1717748245748,2.62409,3810.9,3810.8,4.01857404]
[1717748249150,2.62409,3810.9,3810.8,1.36822609]
[1717748251960,2.4008,3811.1,3810.8,1.36822609]
[1717748252168,2.62398,3811.0,3810.9,1.91949666]
[1717748252953,2.62398,3811.0,3810.9,1.36822609]
[1717748259562,2.62398,3811.0,3810.9,1.91952547]
[1717748260268,2.62398,3811.0,3810.9,1.91955389]
[1717748264691,3.37398,3811.0,3810.9,1.91955389]
[1717748265466,5.65148,3811.0,3810.9,1.91955389]
[1717748267240,5.65148,3811.0,3810.9,1.91956243]
[1717748271407,3.37398,3811.0,3810.9,1.91956243]
[1717748272206,3.37398,3811.0,3810.9,1.36826305]
[1717748272412,3.37398,3811.0,3810.9,1.91964865]
[1717748272797,3.37398,3811.0,3810.9,1.36826305]
[1717748273742,3.37398,3811.0,3810.9,1.91964762]
[1717748277141,3.37398,3811.0,3810.9,1.36826305]
[1717748278128,3.37398,3811.0,3810.9,1.91966377]
[1717748278332,3.37398,3811.0,3810.9,1.36826305]
[1717748279538,3.37398,3811.0,3810.9,1.91967399]
[1717748280152,3.37398,3811.0,3810.9,1.36826305]
[1717748282750,2.62398,3811.0,3810.9,1.36826305]
[1717748284684,2.62398,3811.0,3810.9,1.91970147]
[1717748284985,2.62398,3811.0,3810.9,1.91969037]
[1717748285487,2.62398,3811.0,3810.9,1.91969492]
[1717748286177,2.62398,3811.0,3810.9,1.91969467]
[1717748286665,2.62398,3811.0,3810.9,1.36825625]
[1717748287073,2.62398,3811.0,3810.9,1.91969492]
[1717748294159,2.62398,3811.0,3810.9,1.36825625]
[1717748297699,2.62398,3811.0,3810.9,4.01853353]
[1717748298097,2.62398,3811.0,3810.9,1.36825625]
[1717748298400,2.62398,3811.0,3810.9,1.91968988]
[1717748306484,2.62398,3811.0,3810.9,1.91968767]
[1717748308226,2.62398,3811.0,3810.9,1.36825404]
[1717748312953,2.62398,3811.0,3810.9,1.36821169]
[1717748313250,2.62398,3811.0,3810.9,1.9196444]
[1717748313664,2.62398,3811.0,3810.9,1.36821169]
[1717748314510,2.62398,3811.0,3810.9,1.91965363]
[1717748315763,8.30550324,3811.0,3810.9,1.36821169]
[1717748315978,8.30550324,3811.0,3810.7,0.55144194]
[1717748315979,2.62412,3810.8,3810.7,0.55144194]
[1717748316180,7.93152,3810.8,3810.7,0.55144194]
[1717748316390,7.93152,3810.8,3810.3,0.1282461]
[1717748316391,2.62439,3810.4,3810.3,0.1282461]
[1717748317665,4.99269,3810.4,3810.3,0.1282461]
[1717748318340,8.74269,3810.4,3810.3,0.1282461]
[1717748318571,9.31015812,3810.4,3810.3,0.1282461]
[1717748319177,9.67370581,3810.4,3810.3,0.1282461]
[1717748320286,8.74269,3810.4,3810.3,0.1282461]
[1717748325214,6.37439,3810.4,3810.3,0.1282461]
[1717748339060,0.75,3810.4,3810.3,0.1282461]
[1717748339412,3.0,3810.7,3810.3,2.5185461]
[1717748339610,3.75,3810.7,3810.3,2.5185461]
[1717748340411,0.75,3810.7,3810.3,2.5185461]
[1717748340568,2.62415,3810.8,3810.4,1.36823374]
[1717748340903,2.62415,3810.8,3810.5,1.36823374]
[1717748341078,2.62415,3810.8,3810.6,1.36823374]
[1717748341285,2.62415,3810.8,3810.5,0.55144194]
[1717748341477,7.37,3811.0,3810.6,1.75777175]
[1717748341675,8.12,3811.0,3810.6,0.38960216]
[1717748342486,7.37,3811.0,3810.7,2.3385]
[1717748344381,2.62387,3811.2,3810.7,2.3385]
[1717748344594,3.75,3811.1,3810.7,2.3385]
[1717748346965,2.62387,3811.2,3810.7,2.3385]
[1717748347218,3.37387,3811.2,3810.7,2.3385]
[1717748350119,3.0,3811.5,3810.8,1.36815117]
[1717748350324,3.0,3811.5,3810.9,3.78025117]
[1717748350533,3.0,3811.5,3811.0,1.36815117]
[1717748350687,3.75,3811.5,3810.9,2.4121]
[1717748350885,3.75,3811.5,3811.0,0.29635419]
[1717748351918,3.0,3811.5,3811.0,0.29635419]
[1717748362971,2.62359,3811.6,3811.0,0.29635419]
[1717748363172,3.37359,3811.6,3811.0,0.29635419]
[1717748363354,0.75,3811.6,3811.0,0.29635419]
[1717748363555,0.75,3811.6,3811.3,2.3846]
[1717748363779,2.4422,3812.3,3811.3,2.3846]
[1717748364193,0.75,3812.2,3811.5,2.62363]
[1717748364368,2.62292,3812.6,3811.5,2.47008512]
[1717748364572,2.62292,3812.6,3811.6,2.3251]
[1717748364803,0.75,3812.4,3811.6,2.3251]
[1717748364964,2.62292,3812.6,3811.6,2.3251]
[1717748365364,3.37292,3812.6,3811.6,2.3251]
[1717748365567,3.37292,3812.6,3811.7,1.36763541]
[1717748365785,3.37292,3812.6,3811.8,0.42733924]
[1717748368867,0.75,3812.6,3811.8,0.42733924]
[1717748371669,0.75,3812.6,3811.9,2.2565]
[1717748372399,3.0,3812.8,3811.9,2.2565]
[1717748372778,0.75,3812.7,3811.9,2.2565]
[1717748373003,0.75,3812.7,3812.0,0.26838392]
[1717748374699,3.0,3812.9,3812.0,0.26838392]
[1717748374944,0.41098433,3813.2,3812.4,2.62296]
[1717748375086,2.6223,3813.5,3812.5,2.3839]
[1717748375520,0.75,3813.4,3812.5,2.3839]
[1717748375718,0.56856,3813.3,3812.5,2.3839]
[1717748380434,2.62248,3813.2,3812.5,2.3839]
[1717748394743,0.56700493,3813.5,3812.6,2.62286]
[1717748394917,0.75,3813.3,3812.9,2.3382]
[1717748395120,7.41520641,3813.8,3812.9,2.3382]
[1717748397011,0.04520641,3813.8,3812.9,2.3382]
[1717748401530,3.0,3813.9,3812.9,2.3382]
[1717748401833,3.0,3813.9,3813.0,1.36712106]
[1717748401834,0.75,3813.9,3813.0,1.36712106]
[1717748402038,2.62193,3814.0,3813.1,2.415]
[1717748402226,2.62193,3814.0,3813.2,2.7857563]
[1717748402830,3.37193,3814.0,3813.2,2.7857563]
[1717748404857,3.37193,3814.0,3813.2,2.3524]
[1717748405345,2.4043,3813.9,3813.2,2.3524]
[1717748410418,2.62207,3813.8,3813.2,2.3524]
[1717748412113,2.62207,3813.8,3813.3,1.36717062]
[1717748412430,2.62207,3813.8,3813.2,2.3524]
[1717748412635,2.62207,3813.8,3813.3,1.36716031]
[1717748412835,2.62207,3813.8,3813.2,2.3524]
[1717748413057,2.62207,3813.8,3813.3,1.36716999]
[1717748413257,2.62207,3813.8,3813.2,2.3524]
[1717748413456,2.62207,3813.8,3813.3,1.36716526]
[1717748413766,2.62207,3813.8,3813.2,2.3524]
[1717748413935,2.62207,3813.8,3813.2,2.72538755]
[1717748414130,2.62207,3813.8,3813.3,1.36719116]
[1717748414360,2.62207,3813.8,3813.2,2.72538755]
[1717748414532,2.62207,3813.8,3813.3,1.36718668]
[1717748414735,2.62207,3813.8,3813.2,2.72538755]
[1717748415088,2.62181,3814.2,3813.3,1.71788146]
[1717748415365,0.75,3814.0,3813.4,1.36717558]
[1717748415564,0.75,3814.0,3813.3,0.90214782]
[1717748415770,0.75,3814.0,3813.4,1.36712889]
[1717748415939,0.75,3814.0,3813.3,0.90214782]
[1717748416144,0.75,3814.0,3813.4,1.36712878]
[1717748416348,0.75,3814.0,3813.3,0.90214782]
[1717748416547,0.75,3814.0,3813.4,1.36712278]
[1717748416754,0.75,3814.0,3813.3,0.90214782]
[1717748416956,0.75,3814.0,3813.4,1.36712309]
[1717748417160,0.75,3814.0,3813.3,0.90214782]
[1717748417536,0.75,3814.0,3813.4,1.36712359]
[1717748417773,0.75,3814.0,3813.3,0.90214782]
[1717748417979,0.75,3814.0,3813.4,1.36712367]
[1717748418275,0.75,3814.0,3813.5,1.36712936]
[1717748418472,0.75,3814.0,3813.3,0.90214782]
[1717748418679,0.75,3814.0,3813.4,1.3671343]
[1717748418970,0.75,3814.0,3813.3,0.90214782]
[1717748419171,0.75,3814.0,3813.4,1.7401113]
[1717748419383,0.75,3814.0,3813.5,1.36712375]
[1717748419677,0.75,3814.0,3813.3,0.55144194]
[1717748419850,0.75,3814.0,3813.4,1.36712331]
[1717748420053,0.75,3814.0,3813.5,1.36712331]
[1717748420377,0.75,3814.0,3813.3,0.55144194]
[1717748420552,0.75,3814.0,3813.4,1.36712296]
[1717748420753,0.75,3814.0,3813.5,1.36712296]
[1717748420954,0.75,3814.0,3813.3,0.55144194]
[1717748421154,0.75,3814.0,3813.4,1.36712296]
[1717748421357,0.75,3814.0,3813.5,1.36712296]
[1717748421580,0.75,3814.0,3813.3,0.55144194]
[1717748421780,0.75,3814.0,3813.4,1.36712295]
[1717748421996,0.75,3814.0,3813.5,1.36712295]
[1717748422285,0.75,3814.0,3813.3,0.55144194]
[1717748422572,0.75,3814.0,3813.4,1.36714033]
[1717748422780,0.75,3814.0,3813.5,1.36714033]
[1717748422955,0.75,3814.0,3813.3,0.55144194]
[1717748423155,0.75,3814.0,3813.4,1.36713235]
[1717748423472,0.75,3814.0,3813.5,1.36713235]
[1717748423695,0.75,3814.0,3813.3,0.55144194]
[1717748423980,0.75,3814.0,3813.4,1.36712713]
[1717748424166,0.75,3814.0,3813.2,2.90384194]
[1717748424559,1.31686836,3814.0,3813.3,1.36718109]
[1717748424752,1.31686836,3814.0,3813.2,2.90384194]